bitfinex/quotes_BTCUSD_20220731
["timestamp","ask_amount","ask_price","bid_price","bid_amount"]
[1659280890602,0.304184,23761.0,23755.0,0.40725733]
[1659280890835,0.40725733,23762.0,23755.0,0.40725733]
[1659280891063,0.304184,23761.0,23755.0,0.40725733]
[1659280891287,0.304184,23760.0,23755.0,0.40725733]
[1659280891522,0.043,23761.0,23756.0,0.05]
[1659280891746,0.043,23761.0,23751.0,0.3]
[1659280891747,0.40725733,23759.0,23751.0,0.3]
[1659280891996,0.40725733,23759.0,23751.0,0.70725733]
[1659280892944,0.304184,23758.0,23751.0,0.70725733]
[1659280893177,0.304184,23758.0,23748.0,0.58921175]
[1659280893178,0.40725733,23757.0,23748.0,0.26090611]
[1659280893421,0.304184,23756.0,23746.0,0.3]
[1659280893658,0.304184,23755.0,23745.0,0.5953]
[1659280893908,0.304184,23755.0,23741.0,0.0541]
[1659280893909,0.85075733,23754.0,23741.0,0.0541]
[1659280894149,1.15494133,23753.0,23742.0,0.70725733]
[1659280894377,1.15494133,23752.0,23741.0,0.40725733]
[1659280894630,0.40725733,23751.0,23743.0,0.3]
[1659280894854,0.40725733,23754.0,23744.0,0.43887733]
[1659280895097,0.304184,23753.0,23745.0,0.70725733]
[1659280895337,0.304184,23752.0,23746.0,0.40725733]
[1659280895570,0.348184,23751.0,23746.0,0.40725733]
[1659280895790,0.304184,23750.0,23746.0,0.40725733]
[1659280896017,0.044,23751.0,23747.0,0.03467316]
[1659280896238,0.304184,23750.0,23746.0,0.40725733]
[1659280896533,0.044,23751.0,23746.0,0.40725733]
[1659280896758,0.40725733,23753.0,23746.0,0.40725733]
[1659280896977,0.304184,23752.0,23746.0,0.40725733]
[1659280897207,0.40725733,23753.0,23746.0,0.40725733]
[1659280897436,0.304184,23752.0,23746.0,0.40725733]
[1659280897662,0.44825733,23753.0,23746.0,0.40725733]
[1659280897887,0.304184,23752.0,23746.0,0.40725733]
[1659280898611,0.304184,23752.0,23748.0,0.05]
[1659280898847,0.304184,23752.0,23749.0,0.44193049]
[1659280899101,0.304184,23752.0,23748.0,0.05]
[1659280899102,0.041,23753.0,23748.0,0.05]
[1659280899317,0.343184,23752.0,23748.0,0.05]
[1659280899529,0.304184,23751.0,23750.0,0.05]
[1659280899986,0.039,23752.0,23751.0,0.9]
[1659280900221,0.039,23752.0,23751.0,2.04305133]
[1659280900656,0.039,23752.0,23751.0,2.09305133]
[1659280900661,0.039,23752.0,23751.0,0.304184]
[1659280900880,0.039,23752.0,23747.0,0.5984]
[1659280901107,0.039,23752.0,23747.0,1.00565733]
[1659280901323,0.037,23752.0,23747.0,1.00565733]
[1659280902478,0.037,23752.0,23747.0,1.03726733]
[1659280902718,0.4435,23758.0,23748.0,0.3]
[1659280902947,0.71144133,23757.0,23748.0,0.3]
[1659280903186,0.71144133,23756.0,23750.0,0.00245057]
[1659280903414,0.71144133,23755.0,23750.0,0.00245057]
[1659280903639,0.304184,23754.0,23750.0,0.00245057]
[1659280903861,0.40725733,23755.0,23750.0,0.00245057]
[1659280904100,0.304184,23754.0,23750.0,0.00245057]
[1659280904378,0.304184,23753.0,23750.0,0.00245057]
[1659280904609,0.304184,23752.0,23750.0,0.00245057]
[1659280904827,0.40725733,23755.0,23750.0,0.00245057]
[1659280905062,0.304184,23754.0,23750.0,0.00245057]
[1659280905293,0.304184,23753.0,23750.0,0.00245057]
[1659280905511,0.068,23752.0,23750.0,0.07745057]
[1659280905732,0.304184,23751.0,23750.0,0.07745057]
[1659280905944,0.304184,23751.0,23750.0,0.11212373]
[1659280906658,0.05,23752.0,23750.0,0.03712373]
[1659280906929,0.304184,23751.0,23750.0,0.03712373]
[1659280907145,0.304184,23751.0,23750.0,0.00245057]
[1659280907606,0.037,23752.0,23750.0,0.00245057]
[1659280907829,0.304184,23751.0,23750.0,0.03712373]
[1659280908053,0.037,23752.0,23750.0,0.03712373]
[1659280908294,0.304184,23751.0,23750.0,0.00245057]
[1659280908742,0.40725733,23755.0,23750.0,0.00245057]
[1659280908967,0.304184,23754.0,23750.0,0.00245057]
[1659280909198,0.304184,23753.0,23750.0,0.00245057]
[1659280909415,0.304184,23752.0,23750.0,0.00245057]
[1659280909677,0.303996,23751.0,23750.0,5.7e-07]
[1659280909896,1.20475333,23751.0,23750.0,5.7e-07]
[1659280910117,0.76125333,23751.0,23750.0,5.7e-07]
[1659280910390,0.303996,23751.0,23750.0,0.00245607]
[1659280911545,0.338996,23751.0,23750.0,0.00245607]
[1659280912677,0.303996,23751.0,23750.0,0.00245607]
[1659280914300,0.71125333,23751.0,23750.0,0.00245607]
[1659280915196,0.303996,23751.0,23750.0,0.00245607]
[1659280915661,0.71125333,23751.0,23750.0,0.00245607]
[1659280917519,0.77825333,23751.0,23750.0,0.00245607]
[1659280917726,0.77325333,23751.0,23750.0,0.00245607]
[1659280918892,0.70625333,23751.0,23750.0,0.00245607]
[1659280919347,0.77325333,23751.0,23750.0,0.00245607]
[1659280920729,0.70625333,23751.0,23750.0,0.00245607]
[1659280921423,0.77325333,23751.0,23750.0,0.00245607]
[1659280922377,0.0009,23760.0,23751.0,0.09991599]
[1659280922619,0.0009,23760.0,23759.0,0.04991599]
[1659280922849,0.0009,23760.0,23758.0,0.04991599]
[1659280923076,0.0009,23760.0,23759.0,0.1]
[1659280923313,0.0009,23760.0,23759.0,0.03488963]
[1659280923576,0.304906,23760.0,23759.0,0.08]
[1659280924050,0.0009,23760.0,23759.0,0.08]
[1659280924282,0.304906,23760.0,23759.0,0.08]
[1659280924750,0.304906,23760.0,23756.0,0.04991599]
[1659280924984,0.0009,23760.0,23758.0,0.00232209]
[1659280925959,0.304006,23759.0,23758.0,0.00232209]
[1659280926491,0.0009,23760.0,23758.0,0.00232209]
[1659280926730,0.304006,23759.0,23758.0,0.00232209]
[1659280926952,0.0009,23760.0,23758.0,0.00232209]
[1659280927165,0.304006,23759.0,23758.0,0.00232209]
[1659280927422,0.0009,23760.0,23758.0,0.08232209]
[1659280927645,0.304006,23759.0,23758.0,0.11699525]
[1659280927870,0.0009,23760.0,23758.0,0.11699525]
[1659280928093,0.0009,23760.0,23758.0,0.08232209]
[1659280928350,0.0009,23760.0,23758.0,0.13223808]
[1659280928806,0.0009,23760.0,23758.0,0.16691124]
[1659280929024,0.304006,23759.0,23758.0,0.13223808]
[1659280929262,0.0009,23760.0,23758.0,0.05223808]
[1659280929503,0.304006,23759.0,23758.0,0.13123808]
[1659280929728,0.0009,23760.0,23758.0,0.13123808]
[1659280929958,0.304006,23759.0,23758.0,0.13123808]
[1659280930188,0.0009,23760.0,23758.0,0.13123808]
[1659280930875,0.0009,23760.0,23758.0,0.23642308]
[1659280931629,0.0009,23760.0,23758.0,0.31642308]
[1659280931864,0.0009,23760.0,23759.0,0.91117932]
[1659280932099,0.0009,23760.0,23759.0,0.60717332]
[1659280932328,0.0009,23760.0,23759.0,0.64184648]
[1659280933260,0.0009,23760.0,23759.0,0.94184648]
[1659280933497,0.0009,23760.0,23759.0,0.98684648]
[1659280934449,0.50496526,23760.0,23759.0,0.68684648]
[1659280934927,0.50496526,23760.0,23759.0,1.72909296]
[1659280935186,0.50496526,23760.0,23759.0,1.81069296]
[1659280935405,0.50496526,23760.0,23759.0,1.80836124]
[1659280935628,0.50496526,23760.0,23759.0,1.85836124]
[1659280936079,0.50496526,23760.0,23759.0,1.80836124]
[1659280936295,0.50496526,23760.0,23759.0,1.85836124]
[1659280936545,0.50496526,23760.0,23759.0,1.43776424]
[1659280936778,0.50496526,23760.0,23759.0,1.39876424]
[1659280937272,0.50496526,23760.0,23759.0,1.40109031]
[1659280937505,0.50496526,23760.0,23759.0,1.44909031]
[1659280938654,0.50496526,23760.0,23759.0,1.36949031]
[1659280938888,0.50496526,23760.0,23759.0,0.65284083]
[1659280939165,0.50496526,23760.0,23759.0,0.95684683]
[1659280939404,0.50496526,23760.0,23759.0,0.61349939]
[1659280939631,0.50496526,23760.0,23759.0,0.5635834]
[1659280940317,0.80897126,23760.0,23759.0,0.5635834]
[1659280940771,0.50496526,23760.0,23759.0,0.5095834]
[1659280941448,0.50496526,23760.0,23759.0,0.62425656]
[1659280941726,0.50496526,23760.0,23759.0,0.62565145]
[1659280941964,0.50496526,23760.0,23759.0,0.5895834]
[1659280942656,0.50496526,23760.0,23759.0,0.55128839]
[1659280943134,0.50496526,23760.0,23759.0,0.5095834]
[1659280943619,0.91222259,23760.0,23759.0,0.04432607]
[1659280943843,1.21622859,23760.0,23759.0,0.04432607]
[1659280944767,1.21622859,23760.0,23759.0,0.00232607]
[1659280945473,1.21622859,23760.0,23759.0,0.04732607]
[1659280946872,1.21622859,23760.0,23759.0,0.00232607]
[1659280947089,1.21622859,23760.0,23759.0,0.00225361]
[1659280947531,1.21622859,23760.0,23759.0,0.04725361]
[1659280948645,1.21622859,23760.0,23759.0,0.00225361]
[1659280949368,1.21622859,23760.0,23759.0,0.04725361]
[1659280950952,0.80897126,23760.0,23759.0,0.04725361]
[1659280951191,0.80897126,23760.0,23759.0,0.00225361]
[1659280951404,0.80897126,23760.0,23759.0,0.04725361]
[1659280952787,0.80897126,23760.0,23759.0,0.00225361]
[1659280953782,0.80897126,23760.0,23759.0,0.04725361]
[1659280955201,0.80897126,23760.0,23759.0,0.00225361]
[1659280956836,0.80897126,23760.0,23759.0,0.04725361]
[1659280957549,0.80897126,23760.0,23759.0,0.09525361]
[1659280958248,0.80897126,23760.0,23759.0,0.00225361]
[1659280959382,0.80897126,23760.0,23759.0,0.02025361]
[1659280960097,0.80897126,23760.0,23759.0,0.0701696]
[1659280960329,0.80897126,23760.0,23759.0,0.02025361]
[1659280960794,0.80897126,23760.0,23759.0,0.00225361]
[1659280961469,0.80897126,23760.0,23759.0,0.02925361]
[1659280963397,0.80897126,23760.0,23759.0,0.06925361]
[1659280963621,0.80897126,23760.0,23759.0,0.08091893]
[1659280963854,0.80897126,23760.0,23759.0,0.04225361]
[1659280964841,0.80897126,23760.0,23759.0,0.00225361]
[1659280965521,0.80897126,23760.0,23759.0,0.04225361]
[1659280966884,1.21622859,23760.0,23759.0,3.61e-06]
[1659280967607,1.21622859,23760.0,23759.0,0.03120952]
[1659280968294,1.26622859,23760.0,23759.0,0.03120952]
[1659280968523,1.31622859,23760.0,23759.0,0.03120952]
[1659280968764,1.61622859,23760.0,23759.0,0.00220591]
[1659280968987,1.61622859,23760.0,23749.0,0.10471599]
[1659280969243,0.54809299,23759.0,23750.0,0.40725733]
[1659280969511,0.54809299,23759.0,23748.0,0.5972]
[1659280969512,8.401e-05,23757.0,23748.0,0.5972]
[1659280969751,0.54799133,23756.0,23748.0,0.40725733]
[1659280970004,1.36534234,23755.0,23745.0,0.6233]
[1659280970232,1.36534234,23755.0,23745.0,0.40725733]
[1659280970233,1.11479133,23754.0,23745.0,0.40725733]
[1659280970461,0.71126333,23753.0,23745.0,0.40725733]
[1659280970693,0.54799133,23752.0,23745.0,0.40725733]
[1659280970914,0.304006,23751.0,23745.0,0.40725733]
[1659280971183,0.40725733,23752.0,23745.0,0.40225733]
[1659280971432,0.40725733,23752.0,23745.0,0.47990081]
[1659280972097,0.40725733,23752.0,23745.0,0.5298168]
[1659280972582,0.40725733,23752.0,23745.0,0.51717332]
[1659280972817,0.40725733,23752.0,23745.0,0.45217332]
[1659280973501,0.40725733,23752.0,23745.0,0.46725733]
[1659280973756,0.4085855,23752.0,23745.0,0.46725733]
[1659280974210,0.304006,23751.0,23745.0,0.46725733]
[1659280974449,0.4085855,23752.0,23746.0,0.00201291]
[1659280974686,0.304006,23751.0,23746.0,0.10725291]
[1659280974915,0.140734,23750.0,23746.0,0.10725291]
[1659280975143,0.4085855,23752.0,23747.0,0.03467316]
[1659280975385,0.304006,23751.0,23747.0,0.105235]
[1659280975632,0.140734,23750.0,23747.0,0.105235]
[1659280975866,0.71126333,23751.0,23747.0,0.105235]
[1659280976091,0.140734,23750.0,23747.0,0.105235]
[1659280976331,0.304006,23749.0,23747.0,0.105235]
[1659280976547,0.4085855,23751.0,23747.0,0.105235]
[1659280976763,0.304006,23750.0,23747.0,0.105235]
[1659280977218,0.140734,23749.0,23747.0,0.105235]
[1659280977432,0.4085855,23751.0,23747.0,0.185235]
[1659280977749,0.304006,23750.0,23747.0,0.21990816]
[1659280978283,0.304006,23750.0,23747.0,0.185235]
[1659280978504,0.304006,23750.0,23747.0,0.08]
[1659280978729,0.4085855,23751.0,23748.0,0.03467316]
[1659280979231,0.00132817,23751.0,23748.0,0.03467316]
[1659280979480,0.00132817,23751.0,23748.0,0.10067316]
[1659280979930,0.4085855,23751.0,23748.0,0.066]
[1659280980141,0.304006,23750.0,23748.0,0.066]
[1659280980373,0.4085855,23751.0,23748.0,0.066]
[1659280980374,0.140734,23749.0,23748.0,0.066]
[1659280980612,0.4085855,23751.0,23748.0,0.066]
[1659280980858,0.304006,23750.0,23748.0,0.066]
[1659280981099,0.140734,23749.0,23748.0,0.066]
[1659280981337,0.4085855,23751.0,23747.0,0.00200976]
[1659280981594,0.304006,23750.0,23748.0,0.066]
[1659280982015,0.140734,23749.0,23748.0,0.066]
[1659280982179,0.4085855,23751.0,23748.0,0.066]
[1659280982448,0.304006,23750.0,23748.0,0.1031537]
[1659280982672,0.0013813,23749.0,23748.0,0.0371537]
[1659280983430,0.0013813,23749.0,23748.0,0.073]
[1659280983655,0.0013813,23749.0,23748.0,0.10767316]
[1659280984562,0.0013813,23749.0,23748.0,0.073]
[1659280984781,0.0013813,23749.0,23747.0,0.31768376]
[1659280985258,0.0013813,23749.0,23747.0,0.10723576]
[1659280985540,0.0013813,23749.0,23747.0,0.18623576]
[1659280985792,0.0013813,23749.0,23747.0,0.22090892]
[1659280986608,0.0013813,23749.0,23748.0,0.00034417]
[1659280986830,0.0013813,23749.0,23747.0,0.18623576]
[1659280987255,0.0013813,23749.0,23747.0,0.10723576]
[1659280987477,0.0013813,23749.0,23748.0,0.079]
[1659280987718,0.1759513,23749.0,23748.0,0.079]
[1659280987930,0.4799573,23749.0,23748.0,0.079]
[1659280988873,0.4354573,23749.0,23747.0,0.00200976]
[1659280989092,0.1314513,23749.0,23747.0,0.00200976]
[1659280989378,0.304006,23748.0,23747.0,0.00200976]
[1659280989599,0.0013813,23749.0,23747.0,0.00200976]
[1659280990285,0.0013813,23749.0,23747.0,0.40926709]
[1659280991235,0.0013813,23749.0,23747.0,0.51449509]
[1659280991473,0.0013813,23749.0,23747.0,0.59149509]
[1659280991699,0.0013813,23749.0,23747.0,0.48626709]
[1659280992829,0.0013813,23749.0,23747.0,0.40926709]
[1659280993384,0.0013813,23749.0,23747.0,0.07900976]
[1659280993616,0.304006,23748.0,23747.0,0.07900976]
[1659280995019,0.304006,23748.0,23747.0,0.00200976]
[1659280995445,0.304006,23748.0,23747.0,0.08200976]
[1659280996823,0.304006,23748.0,23747.0,0.00200976]
[1659280997342,0.304006,23748.0,23747.0,0.07400976]
[1659280997801,0.304006,23748.0,23747.0,0.10895758]
[1659280998037,0.00128951,23749.0,23747.0,0.15345758]
[1659280998504,0.304006,23748.0,23747.0,0.15345758]
[1659280998753,0.00128951,23749.0,23747.0,0.03668292]
[1659280998974,0.304006,23748.0,23747.0,0.00200976]
[1659280999215,0.00128951,23749.0,23747.0,0.00200976]
[1659280999429,0.304006,23748.0,23747.0,0.06800976]
[1659280999696,0.00128951,23749.0,23747.0,0.06800976]
[1659281000130,0.304006,23748.0,23747.0,0.06800976]
[1659281000341,0.00128951,23749.0,23747.0,0.06800976]
[1659281000568,0.304006,23748.0,23747.0,0.06800976]
[1659281000789,0.00128951,23749.0,23747.0,0.06800976]
[1659281001274,0.304006,23748.0,23747.0,0.00200976]
[1659281001499,0.00128951,23749.0,23747.0,0.06800976]
[1659281001724,0.304006,23748.0,23747.0,0.06800976]
[1659281001946,0.00128951,23749.0,23747.0,0.06800976]
[1659281002162,0.304006,23748.0,23747.0,0.06800976]
[1659281002383,0.00128951,23749.0,23747.0,0.06800976]
[1659281002628,0.304006,23748.0,23747.0,0.06800976]
[1659281002860,0.00128951,23749.0,23747.0,0.00200976]
[1659281003088,0.304006,23748.0,23747.0,0.00200976]
[1659281003311,0.00128951,23749.0,23747.0,0.00200976]
[1659281003605,0.304006,23748.0,23747.0,0.07200976]
[1659281003843,0.00128951,23749.0,23747.0,0.07200976]
[1659281004096,0.354006,23748.0,23747.0,0.07200976]
[1659281004327,0.76126333,23748.0,23747.0,0.07200976]
[1659281004782,0.76126333,23748.0,23747.0,0.06200976]
[1659281005282,0.76126333,23748.0,23743.0,0.644]
[1659281005509,0.05,23748.0,23747.0,0.079]
[1659281005733,0.76126333,23748.0,23747.0,0.079]
[1659281005956,0.76126333,23748.0,23747.0,0.08138659]
[1659281006694,0.304006,23748.0,23747.0,0.16347939]
[1659281006942,0.00128951,23749.0,23748.0,0.04991599]
[1659281007866,0.30529551,23749.0,23748.0,0.04991599]
[1659281008329,0.47986551,23749.0,23747.0,0.08505975]
[1659281008543,0.140734,23748.0,23747.0,0.05038659]
[1659281008847,0.140734,23748.0,23747.0,0.00238659]
[1659281009526,0.140734,23748.0,23747.0,0.07238659]
[1659281009757,0.54799133,23748.0,23747.0,0.07238659]
[1659281010733,0.54799133,23748.0,23747.0,0.00238659]
[1659281011420,0.54799133,23748.0,23747.0,0.07238659]
[1659281012863,0.54799133,23748.0,23747.0,0.00238659]
[1659281013535,0.140734,23748.0,23747.0,0.07238659]
[1659281014246,0.54799133,23748.0,23747.0,0.07238659]
[1659281014684,0.54799133,23748.0,23747.0,0.00238659]
[1659281015402,0.54799133,23748.0,23747.0,0.07238659]
[1659281016810,0.54799133,23748.0,23747.0,0.00238659]
[1659281017490,0.54799133,23748.0,23747.0,0.07238659]
[1659281018660,0.54799133,23748.0,23747.0,0.00238659]
[1659281019345,0.54799133,23748.0,23747.0,0.07238659]
[1659281020762,0.140734,23748.0,23747.0,0.04688659]
[1659281021475,0.00128951,23749.0,23747.0,0.16680258]
[1659281021706,0.00128951,23749.0,23748.0,0.1]
[1659281021947,0.00128951,23749.0,23747.0,0.12230258]
[1659281022418,0.00128951,23749.0,23747.0,0.07238659]
[1659281023224,0.00128951,23749.0,23747.0,0.00238659]
[1659281023458,0.00128951,23749.0,23747.0,0.05038659]
[1659281023599,0.00128951,23749.0,23748.0,0.03467316]
[1659281024034,0.00128951,23749.0,23747.0,0.05038659]
[1659281024535,0.00128951,23749.0,23748.0,0.1]
[1659281024748,0.00128951,23749.0,23748.0,0.13467316]
[1659281024964,0.00128951,23749.0,23748.0,0.1]
[1659281025181,0.00128951,23749.0,23747.0,0.00238659]
[1659281025411,0.00128951,23749.0,23748.0,0.048]
[1659281026630,0.00128951,23749.0,23747.0,0.00238659]
[1659281026829,0.00121621,23749.0,23748.0,0.1]
[1659281027256,0.00121621,23749.0,23748.0,0.158]
[1659281027983,0.00121621,23749.0,23748.0,0.19267316]
[1659281028607,0.00121621,23749.0,23748.0,0.13467316]
[1659281028970,0.00121621,23749.0,23747.0,0.03705975]
[1659281029463,0.00121621,23749.0,23748.0,0.057]
[1659281030182,0.30522221,23749.0,23748.0,0.057]
[1659281030403,0.00121621,23749.0,23748.0,0.09167316]
[1659281030842,0.00121621,23749.0,23748.0,0.08458915]
[1659281031295,0.00121621,23749.0,23748.0,0.08622344]
[1659281031507,0.00121621,23749.0,23748.0,0.16222344]
[1659281031980,0.304006,23754.0,23748.0,0.16222344]
[1659281032196,0.40725733,23753.0,23748.0,0.16222344]
[1659281032637,0.0014793,23749.0,23748.0,0.12591599]
[1659281032864,0.0014793,23749.0,23748.0,0.04991599]
[1659281033575,0.40865313,23753.0,23748.0,0.12991599]
[1659281034006,0.40865313,23753.0,23748.0,0.17991599]
[1659281034223,0.40865313,23753.0,23748.0,0.12991599]
[1659281034451,0.40865313,23753.0,23748.0,0.23513099]
[1659281034678,0.40865313,23753.0,23749.0,0.04991599]
[1659281035606,0.304006,23752.0,23749.0,0.10691599]
[1659281036050,0.140734,23751.0,23749.0,0.10691599]
[1659281036269,0.40865313,23753.0,23749.0,0.10691599]
[1659281036488,0.304006,23752.0,23749.0,0.10691599]
[1659281036727,0.304006,23752.0,23750.0,0.03950482]
[1659281036948,0.140734,23751.0,23749.0,0.04991599]
[1659281037161,0.40865313,23753.0,23749.0,0.04991599]
[1659281037400,0.304006,23752.0,23750.0,0.061]
[1659281037837,0.140734,23751.0,23750.0,0.061]
[1659281038116,0.40865313,23753.0,23750.0,0.061]
[1659281038288,0.304006,23752.0,23750.0,0.061]
[1659281038726,0.1195058,23751.0,23750.0,0.061]
[1659281039173,0.1195058,23751.0,23749.0,0.04991599]
[1659281039437,0.2602398,23751.0,23750.0,0.116]
[1659281039652,0.1195058,23751.0,23750.0,0.066]
[1659281039896,0.1421298,23751.0,23750.0,0.0679021]
[1659281040741,0.1421298,23751.0,23750.0,0.0019021]
[1659281041439,0.1421298,23751.0,23750.0,0.0679021]
[1659281042743,0.1421298,23751.0,23750.0,0.0019021]
[1659281043409,0.1421298,23751.0,23750.0,0.0679021]
[1659281043869,1.0,23750.0,23743.0,0.644]
[1659281044090,1.01126333,23749.0,23743.0,0.644]
[1659281044322,0.54799133,23748.0,23743.0,0.644]
[1659281044556,0.71126333,23747.0,23743.0,0.644]
[1659281044781,0.140734,23746.0,23743.0,0.644]
[1659281045023,0.304006,23745.0,23743.0,0.644]
[1659281045272,0.140734,23744.0,23743.0,0.644]
[1659281045495,0.40725733,23747.0,23743.0,0.644]
[1659281045496,0.40725733,23747.0,23743.0,0.723]
[1659281045780,0.304006,23746.0,23744.0,0.08499455]
[1659281046003,0.140734,23745.0,23744.0,0.03499455]
[1659281046234,0.40725733,23747.0,23743.0,0.723]
[1659281046479,0.304006,23746.0,23744.0,0.05]
[1659281046695,0.40725733,23747.0,23744.0,0.03467316]
[1659281046935,0.304006,23746.0,23744.0,0.03467316]
[1659281047173,0.190734,23745.0,23743.0,0.644]
[1659281047398,0.304006,23744.0,23743.0,0.644]
[1659281047625,0.05,23745.0,23743.0,0.64602619]
[1659281047871,0.304006,23744.0,23743.0,0.64602619]
[1659281048106,0.40725733,23747.0,23743.0,0.64602619]
[1659281048393,0.304006,23746.0,23743.0,0.64602619]
[1659281048610,0.140734,23745.0,23743.0,0.64602619]
[1659281048851,0.304006,23744.0,23743.0,0.64602619]
[1659281049099,0.354006,23744.0,23743.0,0.64602619]
[1659281049311,0.40725733,23747.0,23743.0,0.64602619]
[1659281049550,0.30543985,23746.0,23743.0,0.71102619]
[1659281049764,0.140734,23745.0,23743.0,0.71102619]
[1659281050013,0.00143385,23746.0,23743.0,0.71102619]
[1659281050234,0.304006,23745.0,23743.0,0.71102619]
[1659281050458,0.00143385,23746.0,23743.0,1.02672819]
[1659281050701,0.00143385,23746.0,23743.0,0.96172819]
[1659281050961,0.00143385,23746.0,23744.0,0.59029908]
[1659281051181,0.00143385,23746.0,23745.0,0.03467316]
[1659281051882,0.00143385,23746.0,23743.0,0.69594218]
[1659281052353,0.00143385,23746.0,23745.0,0.05]
[1659281052577,0.00143385,23746.0,23743.0,0.69594218]
[1659281052800,0.00143385,23746.0,23744.0,0.0020227]
[1659281053263,0.00143385,23746.0,23745.0,0.03633749]
[1659281053955,0.304006,23746.0,23744.0,0.0020227]
[1659281054185,0.40725733,23747.0,23744.0,0.0580227]
[1659281054396,0.40725733,23747.0,23744.0,0.10136414]
[1659281054614,0.304006,23746.0,23744.0,0.10136414]
[1659281054932,0.00149359,23748.0,23744.0,0.04536414]
[1659281055163,0.304006,23747.0,23745.0,0.1]
[1659281055378,0.00149359,23748.0,23745.0,0.1]
[1659281055613,0.304006,23747.0,23745.0,0.1]
[1659281055824,0.140734,23746.0,23744.0,0.15061014]
[1659281056013,0.00149359,23748.0,23744.0,0.11593698]
[1659281056229,0.304006,23747.0,23745.0,0.1]
[1659281056439,0.304006,23746.0,23745.0,0.1]
[1659281056657,0.00149359,23748.0,23744.0,0.15061014]
[1659281056894,0.304006,23747.0,23745.0,0.1]
[1659281057092,0.00149359,23748.0,23744.0,0.15061014]
[1659281057435,0.304006,23747.0,23744.0,0.15061014]
[1659281057665,0.00149359,23748.0,23744.0,0.15061014]
[1659281057885,0.00149359,23748.0,23745.0,0.1]
[1659281058105,0.304006,23747.0,23746.0,0.105242]
[1659281058760,0.00149359,23748.0,23746.0,0.105242]
[1659281058933,0.304006,23747.0,23746.0,0.105242]
[1659281059398,0.00149359,23748.0,23746.0,0.105242]
[1659281059624,0.304006,23747.0,23746.0,0.105242]
[1659281059839,0.07449359,23748.0,23746.0,0.105242]
[1659281060330,0.077,23747.0,23746.0,0.139242]
[1659281060542,0.077,23747.0,23746.0,0.17391516]
[1659281061014,0.00149359,23748.0,23746.0,0.105242]
[1659281061236,0.304006,23747.0,23746.0,0.105242]
[1659281061463,0.00149359,23748.0,23746.0,0.105242]
[1659281061707,0.304006,23747.0,23746.0,0.14858344]
[1659281061939,0.00149359,23748.0,23746.0,0.14858344]
[1659281062373,0.00149359,23748.0,23746.0,0.22758344]
[1659281062842,0.3013958,23751.0,23746.0,0.184242]
[1659281063076,0.71126333,23750.0,23746.0,0.184242]
[1659281063303,0.54799133,23749.0,23746.0,0.184242]
[1659281063537,0.304006,23748.0,23746.0,0.105242]
[1659281063756,0.140734,23747.0,23746.0,0.105242]
[1659281063972,0.40725733,23749.0,23746.0,0.105242]
[1659281064196,0.304006,23748.0,23746.0,0.105242]
[1659281064428,0.140734,23747.0,23746.0,0.105242]
[1659281064669,0.40725733,23749.0,23746.0,0.14858344]
[1659281064897,0.40725733,23749.0,23746.0,0.105242]
[1659281064898,0.304006,23748.0,23746.0,0.105242]
[1659281065150,0.140734,23747.0,23746.0,0.105242]
[1659281065358,0.40725733,23749.0,23746.0,0.105242]
[1659281065592,0.304006,23748.0,23746.0,0.105242]
[1659281065814,0.140734,23747.0,23746.0,0.105242]
[1659281066037,0.140734,23747.0,23746.0,0.160242]
[1659281066983,0.13786734,23747.0,23746.0,0.160242]
[1659281067279,0.13786734,23747.0,23746.0,0.105242]
[1659281067802,0.13786734,23747.0,23746.0,0.160242]
[1659281069183,0.13786734,23747.0,23746.0,0.105242]
[1659281069835,0.13786734,23747.0,23746.0,0.160242]
[1659281070772,0.25597734,23747.0,23746.0,0.160242]
[1659281071232,0.25597734,23747.0,23746.0,0.105242]
[1659281071844,0.25597734,23747.0,23746.0,0.160242]
[1659281072762,0.13786734,23747.0,23746.0,0.160242]
[1659281073183,0.13786734,23747.0,23746.0,0.105242]
[1659281073870,0.13786734,23747.0,23746.0,0.19491516]
[1659281074137,0.00149359,23747.0,23746.0,0.160242]
[1659281074590,0.30553559,23747.0,23746.0,0.055]
[1659281075318,0.30553559,23747.0,23745.0,0.210463]
[1659281075554,0.00149359,23747.0,23744.0,0.1072567]
[1659281075778,0.00149359,23747.0,23745.0,0.1]
[1659281076016,0.00149359,23747.0,23746.0,0.055]
[1659281076274,0.30553559,23747.0,23746.0,0.055]
[1659281077181,0.46814559,23747.0,23746.0,0.055]
[1659281077410,0.46814559,23747.0,23745.0,0.1]
[1659281077411,0.30553559,23747.0,23745.0,0.1]
[1659281077642,0.136332,23746.0,23745.0,0.13483603]
[1659281077905,0.00149359,23747.0,23746.0,0.055]
[1659281078131,0.30553559,23747.0,23746.0,0.055]
[1659281079038,0.30553559,23747.0,23746.0,0.08967316]
[1659281079257,0.30553559,23747.0,23746.0,0.03467316]
[1659281079493,0.30553559,23747.0,23745.0,0.1]
[1659281079725,0.00149359,23747.0,23745.0,0.1]
[1659281079975,0.00149359,23747.0,23746.0,0.055]
[1659281080175,0.30553559,23747.0,23746.0,0.055]
[1659281081159,0.30553559,23747.0,23745.0,0.13467316]
[1659281081389,0.00149359,23747.0,23745.0,0.1]
[1659281081844,0.00149359,23747.0,23745.0,0.157]
[1659281082077,0.00149359,23747.0,23746.0,0.1]
[1659281082300,0.00149359,23747.0,23746.0,0.26853286]
[1659281082528,0.00149359,23747.0,23746.0,0.31844885]
[1659281082759,0.00149359,23747.0,23746.0,0.61844885]
[1659281083246,0.00085656,23747.0,23746.0,0.61844885]
[1659281083909,0.00149359,23747.0,23746.0,0.68644885]
[1659281085732,0.00149359,23747.0,23746.0,0.61844885]
[1659281085960,0.00149359,23747.0,23746.0,0.73644885]
[1659281086182,0.00149359,23747.0,23746.0,0.68644885]
[1659281086657,0.00149359,23747.0,23746.0,1.14021197]
[1659281087356,0.00149359,23747.0,23746.0,1.42625397]
[1659281087561,0.00149359,23747.0,23746.0,1.12221197]
[1659281088040,0.00149359,23747.0,23746.0,0.97613798]
[1659281088261,0.00149359,23747.0,23746.0,0.62614655]
[1659281089418,0.00149359,23747.0,23746.0,0.54714655]
[1659281089631,0.00149359,23747.0,23746.0,0.84714655]
[1659281089863,0.00149359,23747.0,23746.0,0.92614655]
[1659281090093,0.00149359,23747.0,23746.0,0.97064655]
[1659281091239,0.00149359,23747.0,23746.0,0.89164655]
[1659281091998,0.00149359,23747.0,23746.0,0.97064655]